[Event "*** SCC Grand Prix: Titled Tuesday Blitz"]
[Site "Chess.com"]
[Date "2020.06.02"]
[Round "8"]
[White "Maksimus1998"]
[Black "Colombiano07"]
[Result "1/2-1/2"]
[WhiteElo "2522"]
[BlackElo "2358"]
[TimeControl "180+1"]
[EndTime "11:38:38 PDT"]
[Termination "Game drawn - insufficient material"]

1. e4 {[%clk 0:02:57.6]} 1... c5 {[%clk 0:03:00.5]} 2. Nf3 {[%clk 0:02:57.3]}
2... g6 {[%clk 0:03:01]} 3. d4 {[%clk 0:02:55]} 3... cxd4 {[%clk 0:03:01.9]} 4.
Nxd4 {[%clk 0:02:55.9]} 4... Nf6 {[%clk 0:03:02.3]} 5. Nc3 {[%clk 0:02:55.3]}
5... Nc6 {[%clk 0:03:02.6]} 6. g3 {[%clk 0:02:51.6]} 6... d5 {[%clk 0:02:29.2]}
7. Bg2 {[%clk 0:02:48.1]} 7... dxe4 {[%clk 0:02:10.5]} 8. Nxc6 {[%clk
0:02:47.9]} 8... Qxd1+ {[%clk 0:02:11.4]} 9. Kxd1 {[%clk 0:02:48]} 9... Bg4+
{[%clk 0:02:08.3]} 10. Ke1 {[%clk 0:02:46.9]} 10... bxc6 {[%clk 0:02:08.7]} 11.
Nxe4 {[%clk 0:02:47.2]} 11... Nxe4 {[%clk 0:02:01.9]} 12. Bxe4 {[%clk 0:02:47]}
12... Bd7 {[%clk 0:02:02.8]} 13. b3 {[%clk 0:02:36.5]} 13... Bg7 {[%clk
0:02:00.5]} 14. Rb1 {[%clk 0:02:36.6]} 14... O-O-O {[%clk 0:01:57.6]} 15. Be3
{[%clk 0:02:36.1]} 15... Kb8 {[%clk 0:01:27.9]} 16. Ke2 {[%clk 0:02:35.6]} 16...
f5 {[%clk 0:01:25.3]} 17. Bd3 {[%clk 0:02:28.3]} 17... e5 {[%clk 0:01:25]} 18.
Rbd1 {[%clk 0:02:24.2]} 18... Be6 {[%clk 0:01:23]} 19. Ba6 {[%clk 0:02:20.8]}
19... e4 {[%clk 0:01:16.8]} 20. Bf4+ {[%clk 0:02:18.8]} 20... Ka8 {[%clk
0:01:13.4]} 21. Bc7 {[%clk 0:02:18.7]} 21... Rd5 {[%clk 0:01:06.6]} 22. c4
{[%clk 0:02:15.2]} 22... Rd4 {[%clk 0:00:34.5]} 23. c5 {[%clk 0:01:50.1]} 23...
f4 {[%clk 0:00:32.4]} 24. Rxd4 {[%clk 0:01:40]} 24... Bxd4 {[%clk 0:00:33.3]}
25. Bxf4 {[%clk 0:01:37.6]} 25... Bxc5 {[%clk 0:00:32]} 26. Rc1 {[%clk
0:01:37.9]} 26... Bg4+ {[%clk 0:00:29.4]} 27. Ke1 {[%clk 0:01:34.8]} 27... Rd8
{[%clk 0:00:25.2]} 28. Be2 {[%clk 0:00:47.1]} 28... Bb4+ {[%clk 0:00:21.6]} 29.
Kf1 {[%clk 0:00:47.5]} 29... Bh3+ {[%clk 0:00:20.3]} 30. Kg1 {[%clk 0:00:48]}
30... Bd2 {[%clk 0:00:20]} 31. Rd1 {[%clk 0:00:45.6]} 31... Ba5 {[%clk
0:00:19.8]} 32. Rc1 {[%clk 0:00:30.8]} 32... Bd2 {[%clk 0:00:18.4]} 33. Bxd2
{[%clk 0:00:20.2]} 33... Rxd2 {[%clk 0:00:17.4]} 34. Bf1 {[%clk 0:00:20.2]}
34... Bxf1 {[%clk 0:00:15.1]} 35. Kxf1 {[%clk 0:00:20.7]} 35... Kb7 {[%clk
0:00:15.2]} 36. a4 {[%clk 0:00:20]} 36... Rb2 {[%clk 0:00:14.6]} 37. Rc4 {[%clk
0:00:20.3]} 37... e3 {[%clk 0:00:12.6]} 38. Rb4+ {[%clk 0:00:20.3]} 38... Kc7
{[%clk 0:00:12.2]} 39. fxe3 {[%clk 0:00:18.4]} 39... Rxh2 {[%clk 0:00:13.1]} 40.
Rf4 {[%clk 0:00:18.4]} 40... Rb2 {[%clk 0:00:11.8]} 41. b4 {[%clk 0:00:18.9]}
41... Kd6 {[%clk 0:00:10.8]} 42. g4 {[%clk 0:00:17]} 42... Ke5 {[%clk 0:00:07]}
43. g5 {[%clk 0:00:16.9]} 43... Kd5 {[%clk 0:00:06.8]} 44. Rf7 {[%clk
0:00:15.7]} 44... Rxb4 {[%clk 0:00:06.3]} 45. Rxa7 {[%clk 0:00:14.4]} 45... Rg4
{[%clk 0:00:05.2]} 46. Kf2 {[%clk 0:00:12.3]} 46... Rxg5 {[%clk 0:00:04]} 47.
Rxh7 {[%clk 0:00:12.2]} 47... Rg4 {[%clk 0:00:03.5]} 48. a5 {[%clk 0:00:12.2]}
48... Ra4 {[%clk 0:00:04]} 49. Rg7 {[%clk 0:00:12.1]} 49... Rxa5 {[%clk
0:00:03.2]} 50. Rxg6 {[%clk 0:00:09.9]} 50... Ke4 {[%clk 0:00:04.1]} 51. Rg4+
{[%clk 0:00:10]} 51... Kf5 {[%clk 0:00:04.5]} 52. Kf3 {[%clk 0:00:09.9]} 52...
Ra1 {[%clk 0:00:03.7]} 53. Rh4 {[%clk 0:00:09.3]} 53... Ke5 {[%clk 0:00:04.2]}
54. Rh5+ {[%clk 0:00:08.6]} 54... Kd6 {[%clk 0:00:04.7]} 55. e4 {[%clk
0:00:08.6]} 55... Re1 {[%clk 0:00:04.4]} 56. Kf4 {[%clk 0:00:08.7]} 56... c5
{[%clk 0:00:04.8]} 57. Rd5+ {[%clk 0:00:08.3]} 57... Kc6 {[%clk 0:00:04.9]} 58.
Rd8 {[%clk 0:00:08.6]} 58... c4 {[%clk 0:00:04.9]} 59. e5 {[%clk 0:00:08.9]}
59... Kb5 {[%clk 0:00:05.1]} 60. Kf5 {[%clk 0:00:08.1]} 60... Kb4 {[%clk
0:00:05.4]} 61. Rb8+ {[%clk 0:00:08.2]} 61... Kc3 {[%clk 0:00:05.4]} 62. e6
{[%clk 0:00:08.6]} 62... Kc2 {[%clk 0:00:05.6]} 63. Kf6 {[%clk 0:00:08.5]} 63...
c3 {[%clk 0:00:06]} 64. e7 {[%clk 0:00:08.8]} 64... Kd2 {[%clk 0:00:05.4]} 65.
Rd8+ {[%clk 0:00:08.8]} 65... Kc1 {[%clk 0:00:05.4]} 66. Rc8 {[%clk 0:00:09.4]}
66... c2 {[%clk 0:00:05.5]} 67. e8=Q {[%clk 0:00:09.4]} 67... Rxe8 {[%clk
0:00:04.5]} 68. Rxe8 {[%clk 0:00:09.9]} 68... Kd2 {[%clk 0:00:02.6]} 69. Rc8
{[%clk 0:00:10.8]} 69... c1=Q {[%clk 0:00:02.5]} 70. Rxc1 {[%clk 0:00:11.5]}
70... Kxc1 {[%clk 0:00:03.4]} 1/2-1/2

[Event "*** SCC Grand Prix: Titled Tuesday Blitz"]
[Site "Chess.com"]
[Date "2020.06.02"]
[Round "8"]
[White "vladislavkovalev"]
[Black "Kezin_Roman"]
[Result "1-0"]
[WhiteElo "2882"]
[BlackElo "2713"]
[TimeControl "180+1"]
[EndTime "11:38:40 PDT"]
[Termination "vladislavkovalev won on time"]

1. e4 {[%clk 0:03:00.9]} 1... c5 {[%clk 0:02:59.6]} 2. Be2 {[%clk 0:03:00.7]}
2... Nc6 {[%clk 0:02:55.6]} 3. d3 {[%clk 0:03:01.6]} 3... g6 {[%clk 0:02:49.4]}
4. f4 {[%clk 0:03:02.5]} 4... Bg7 {[%clk 0:02:49.7]} 5. Nf3 {[%clk 0:03:03]}
5... d5 {[%clk 0:02:47.9]} 6. c3 {[%clk 0:03:02.8]} 6... Nh6 {[%clk 0:02:33.1]}
7. O-O {[%clk 0:02:59.7]} 7... O-O {[%clk 0:02:33.4]} 8. a4 {[%clk 0:02:48.4]}
8... b6 {[%clk 0:02:30.5]} 9. Na3 {[%clk 0:02:48.7]} 9... Bb7 {[%clk 0:02:30.6]}
10. Kh1 {[%clk 0:02:30.6]} 10... dxe4 {[%clk 0:02:10.1]} 11. dxe4 {[%clk
0:02:31.5]} 11... Qxd1 {[%clk 0:02:10.7]} 12. Bxd1 {[%clk 0:02:26.9]} 12... Rad8
{[%clk 0:02:10.2]} 13. Bc2 {[%clk 0:02:26]} 13... Ng4 {[%clk 0:02:00.8]} 14. h3
{[%clk 0:02:20.9]} 14... Nf6 {[%clk 0:02:01]} 15. Re1 {[%clk 0:02:19.8]} 15...
Na5 {[%clk 0:01:52.3]} 16. Kg1 {[%clk 0:01:58.3]} 16... Nd7 {[%clk 0:01:18.2]}
17. Kf2 {[%clk 0:01:56.2]} 17... c4 {[%clk 0:01:08.5]} 18. Be3 {[%clk 0:01:54]}
18... Rfe8 {[%clk 0:01:05.2]} 19. Nb5 {[%clk 0:01:37.7]} 19... a6 {[%clk
0:00:35.3]} 20. Nc7 {[%clk 0:01:38.1]} 20... Rf8 {[%clk 0:00:36.1]} 21. Rad1
{[%clk 0:01:38.8]} 21... Nc5 {[%clk 0:00:36.2]} 22. Bxc5 {[%clk 0:01:33.3]}
22... bxc5 {[%clk 0:00:37.1]} 23. Nd5 {[%clk 0:01:26.4]} 23... e6 {[%clk
0:00:29]} 24. Ne3 {[%clk 0:01:25.8]} 24... Bc6 {[%clk 0:00:27.2]} 25. Nd2 {[%clk
0:01:23.2]} 25... Bh6 {[%clk 0:00:11]} 26. g3 {[%clk 0:01:12.5]} 26... e5 {[%clk
0:00:11]} 27. Ng4 {[%clk 0:01:13.1]} 27... Bg7 {[%clk 0:00:09]} 28. Ne3 {[%clk
0:00:54.3]} 28... exf4 {[%clk 0:00:07.9]} 29. gxf4 {[%clk 0:00:55.2]} 29... Bh6
{[%clk 0:00:05.3]} 30. Kg3 {[%clk 0:00:55.3]} 30... Rb8 {[%clk 0:00:03]} 31.
Ndxc4 {[%clk 0:00:54.7]} 31... Nxc4 {[%clk 0:00:03.9]} 32. Nxc4 {[%clk
0:00:55.6]} 32... Rfe8 {[%clk 0:00:04.7]} 33. Rd6 {[%clk 0:00:46.4]} 33... Bb7
{[%clk 0:00:04.6]} 34. h4 {[%clk 0:00:36.4]} 34... Bf8 {[%clk 0:00:03.2]} 35.
Rb6 {[%clk 0:00:36.6]} 35... Red8 {[%clk 0:00:03.5]} 36. Rd1 {[%clk 0:00:34.5]}
36... Rdc8 {[%clk 0:00:02.5]} 37. Rd7 {[%clk 0:00:31.2]} 37... Bc6 {[%clk
0:00:02.7]} 38. Rxb8 {[%clk 0:00:28]} 38... Rxb8 {[%clk 0:00:03.6]} 39. Rc7
{[%clk 0:00:28.6]} 39... Bb7 {[%clk 0:00:02.4]} 40. a5 {[%clk 0:00:19.1]} 40...
Bc8 {[%clk 0:00:02.2]} 41. Nb6 {[%clk 0:00:18.7]} 41... Be6 {[%clk 0:00:02.8]}
42. f5 {[%clk 0:00:19.3]} 42... Bd6+ {[%clk 0:00:01.2]} 43. Kf3 {[%clk
0:00:19.8]} 43... Bxc7 {[%clk 0:00:01.7]} 44. fxe6 {[%clk 0:00:20.7]} 44... fxe6
{[%clk 0:00:02.6]} 45. Nc4 {[%clk 0:00:20.3]} 45... Rb5 {[%clk 0:00:02.1]} 46.
Ba4 {[%clk 0:00:20.2]} 46... Rb8 {[%clk 0:00:02.8]} 47. e5 {[%clk 0:00:17.5]}
47... Kf7 {[%clk 0:00:03.2]} 48. Ke4 {[%clk 0:00:18.2]} 48... Ke7 {[%clk
0:00:03.8]} 49. Bc6 {[%clk 0:00:18.6]} 49... Rf8 {[%clk 0:00:04]} 50. Bb7 {[%clk
0:00:18.9]} 50... Rf5 {[%clk 0:00:04.2]} 51. Bxa6 {[%clk 0:00:19]} 51... Rh5
{[%clk 0:00:05.1]} 52. Bb7 {[%clk 0:00:18.9]} 52... Rxh4+ {[%clk 0:00:06]} 53.
Kd3 {[%clk 0:00:19.5]} 53... Bb8 {[%clk 0:00:04.9]} 54. a6 {[%clk 0:00:19.7]}
54... Rh2 {[%clk 0:00:04.1]} 55. Na5 {[%clk 0:00:17.3]} 55... Kd7 {[%clk
0:00:01.5]} 56. Nc6 {[%clk 0:00:16.4]} 56... Kc7 {[%clk 0:00:02.4]} 57. b4
{[%clk 0:00:16.7]} 57... cxb4 {[%clk 0:00:02.9]} 58. cxb4 {[%clk 0:00:17.6]}
58... Rb2 {[%clk 0:00:03.2]} 59. Kc3 {[%clk 0:00:17.8]} 59... Rb1 {[%clk
0:00:03.7]} 60. Kc2 {[%clk 0:00:18.4]} 60... Ra1 {[%clk 0:00:02.9]} 61. b5
{[%clk 0:00:18.7]} 61... h5 {[%clk 0:00:02.3]} 62. Kb2 {[%clk 0:00:15.1]} 62...
Ra4 {[%clk 0:00:01.9]} 63. Kb3 {[%clk 0:00:14.8]} 63... Ra1 {[%clk 0:00:02.3]}
64. Kb2 {[%clk 0:00:14.5]} 64... Ra4 {[%clk 0:00:02.5]} 65. Kb3 {[%clk
0:00:03.4]} 65... Ra1 {[%clk 0:00:02.5]} 66. Kb4 {[%clk 0:00:04]} 66... h4
{[%clk 0:00:02.7]} 67. Nxb8 {[%clk 0:00:04.3]} 67... Kxb8 {[%clk 0:00:02.4]} 68.
b6 {[%clk 0:00:04.9]} 68... h3 {[%clk 0:00:01.9]} 69. Kb5 {[%clk 0:00:05.6]}
69... h2 {[%clk 0:00:02]} 70. Bc6 {[%clk 0:00:06]} 70... Rb1+ {[%clk 0:00:01.3]}
71. Ka5 {[%clk 0:00:06.6]} 1-0

[Event "*** SCC Grand Prix: Titled Tuesday Blitz"]
[Site "Chess.com"]
[Date "2020.06.02"]
[Round "8"]
[White "bratkoo"]
[Black "davekoenig"]
[Result "0-1"]
[WhiteElo "2366"]
[BlackElo "2179"]
[TimeControl "180+1"]
[EndTime "11:38:46 PDT"]
[Termination "davekoenig won by checkmate"]

1. e4 {[%clk 0:02:53.2]} 1... e5 {[%clk 0:02:59.5]} 2. Nf3 {[%clk 0:02:53.1]}
2... Nc6 {[%clk 0:02:59.8]} 3. Bc4 {[%clk 0:02:53.6]} 3... Nf6 {[%clk
0:02:59.6]} 4. d3 {[%clk 0:02:53.8]} 4... Bc5 {[%clk 0:02:59.2]} 5. O-O {[%clk
0:02:53.4]} 5... O-O {[%clk 0:02:58.4]} 6. Re1 {[%clk 0:02:54]} 6... Re8 {[%clk
0:02:53.2]} 7. a4 {[%clk 0:02:54]} 7... d6 {[%clk 0:02:43]} 8. c3 {[%clk
0:02:54]} 8... a5 {[%clk 0:02:36.1]} 9. Na3 {[%clk 0:02:50.7]} 9... Bg4 {[%clk
0:02:32.2]} 10. h3 {[%clk 0:02:49.5]} 10... Bh5 {[%clk 0:02:32]} 11. Nc2 {[%clk
0:02:47.7]} 11... Bb6 {[%clk 0:02:22.8]} 12. Be3 {[%clk 0:02:46.9]} 12... Bxe3
{[%clk 0:02:17.4]} 13. Nxe3 {[%clk 0:02:46.4]} 13... Ne7 {[%clk 0:02:15.6]} 14.
g4 {[%clk 0:02:29.7]} 14... Bg6 {[%clk 0:02:14.9]} 15. h4 {[%clk 0:02:28.7]}
15... h6 {[%clk 0:02:10.6]} 16. h5 {[%clk 0:02:28.5]} 16... Bh7 {[%clk
0:02:10.6]} 17. Qb3 {[%clk 0:02:19.3]} 17... Rf8 {[%clk 0:01:59.9]} 18. Rad1
{[%clk 0:02:17.2]} 18... c6 {[%clk 0:01:59.1]} 19. d4 {[%clk 0:02:16.6]} 19...
exd4 {[%clk 0:01:56.2]} 20. e5 {[%clk 0:02:04.2]} 20... Nfd5 {[%clk 0:01:42.4]}
21. cxd4 {[%clk 0:02:00.5]} 21... Nxe3 {[%clk 0:01:37.8]} 22. Rxe3 {[%clk
0:01:59.7]} 22... d5 {[%clk 0:01:37.1]} 23. Be2 {[%clk 0:01:57.4]} 23... Qd7
{[%clk 0:01:35.5]} 24. Ne1 {[%clk 0:01:54.7]} 24... g6 {[%clk 0:01:19.3]} 25.
Rg3 {[%clk 0:01:50.8]} 25... Kg7 {[%clk 0:01:12.7]} 26. Qf3 {[%clk 0:01:49.2]}
26... Qe6 {[%clk 0:01:08.5]} 27. Ng2 {[%clk 0:01:44.4]} 27... g5 {[%clk
0:01:07.5]} 28. Ne3 {[%clk 0:01:42.3]} 28... f5 {[%clk 0:01:05.4]} 29. gxf5
{[%clk 0:01:33.6]} 29... Nxf5 {[%clk 0:01:04.9]} 30. Qg4 {[%clk 0:01:30.7]}
30... Rae8 {[%clk 0:01:01.2]} 31. Nxf5+ {[%clk 0:01:19.3]} 31... Bxf5 {[%clk
0:00:56.3]} 32. Qf3 {[%clk 0:01:19.4]} 32... Be4 {[%clk 0:00:55.8]} 33. Qb3
{[%clk 0:01:17.8]} 33... Re7 {[%clk 0:00:50.3]} 34. Bg4 {[%clk 0:01:17.4]} 34...
Bf5 {[%clk 0:00:49.6]} 35. Be2 {[%clk 0:01:15.6]} 35... Ref7 {[%clk 0:00:44.8]}
36. Rd2 {[%clk 0:01:12]} 36... Be4 {[%clk 0:00:43.2]} 37. Bg4 {[%clk 0:01:11.8]}
37... Qe7 {[%clk 0:00:42.3]} 38. e6 {[%clk 0:01:07.1]} 38... Rf4 {[%clk
0:00:41.4]} 39. Qe3 {[%clk 0:01:03.8]} 39... Qf6 {[%clk 0:00:39.5]} 40. f3
{[%clk 0:01:01.9]} 40... Bf5 {[%clk 0:00:38.6]} 41. e7 {[%clk 0:00:58.3]} 41...
Re8 {[%clk 0:00:38.3]} 42. Bxf5 {[%clk 0:00:58.4]} 42... Rxf5 {[%clk 0:00:37.3]}
43. Re2 {[%clk 0:00:58.9]} 43... Qd6 {[%clk 0:00:35.7]} 44. Kg2 {[%clk
0:00:49.5]} 44... Rf7 {[%clk 0:00:35.3]} 45. Qe6 {[%clk 0:00:48.8]} 45... Qxe6
{[%clk 0:00:33.3]} 46. Rxe6 {[%clk 0:00:49.5]} 46... Rfxe7 {[%clk 0:00:32.7]}
47. Rg6+ {[%clk 0:00:50.2]} 47... Kh7 {[%clk 0:00:32.7]} 48. Rg4 {[%clk
0:00:50.7]} 48... Re6 {[%clk 0:00:30.3]} 49. Rxe6 {[%clk 0:00:49.8]} 49... Rxe6
{[%clk 0:00:30.3]} 50. Kf2 {[%clk 0:00:50.5]} 50... Kg7 {[%clk 0:00:26.5]} 51.
Rg1 {[%clk 0:00:49.3]} 51... Kf6 {[%clk 0:00:26.3]} 52. Rc1 {[%clk 0:00:49.4]}
52... Kf5 {[%clk 0:00:25.8]} 53. Rc5 {[%clk 0:00:49.4]} 53... Kf4 {[%clk
0:00:24.4]} 54. Rxa5 {[%clk 0:00:44.1]} 54... Re3 {[%clk 0:00:24]} 55. Ra8
{[%clk 0:00:42.5]} 55... Rxf3+ {[%clk 0:00:24.1]} 56. Ke2 {[%clk 0:00:42.5]}
56... Rb3 {[%clk 0:00:23.8]} 57. Rh8 {[%clk 0:00:40.6]} 57... Rxb2+ {[%clk
0:00:23]} 58. Kd3 {[%clk 0:00:39.4]} 58... Rb3+ {[%clk 0:00:23.1]} 59. Kc2
{[%clk 0:00:39.2]} 59... Rb4 {[%clk 0:00:22.5]} 60. Rxh6 {[%clk 0:00:37.7]}
60... Rxd4 {[%clk 0:00:21.2]} 61. a5 {[%clk 0:00:33.7]} 61... Ra4 {[%clk
0:00:20.6]} 62. Rf6+ {[%clk 0:00:31.5]} 62... Kg4 {[%clk 0:00:19.9]} 63. h6
{[%clk 0:00:30.9]} 63... Rxa5 {[%clk 0:00:20.1]} 64. Rf8 {[%clk 0:00:29.5]}
64... Ra2+ {[%clk 0:00:19.6]} 65. Kd3 {[%clk 0:00:28.4]} 65... Rh2 {[%clk
0:00:19.2]} 66. Rf6 {[%clk 0:00:29]} 66... Kg3 {[%clk 0:00:17.5]} 67. Ke3 {[%clk
0:00:29.4]} 67... g4 {[%clk 0:00:17.6]} 68. Rg6 {[%clk 0:00:28.8]} 68... c5
{[%clk 0:00:16.7]} 69. Kd3 {[%clk 0:00:27.7]} 69... Rh3 {[%clk 0:00:14.7]} 70.
Ke3 {[%clk 0:00:26.9]} 70... Kg2+ {[%clk 0:00:14]} 71. Kf4 {[%clk 0:00:26.3]}
71... Rf3+ {[%clk 0:00:12.4]} 72. Kxg4 {[%clk 0:00:25.8]} 72... Rf8 {[%clk
0:00:08.9]} 73. h7 {[%clk 0:00:22.6]} 73... Rh8 {[%clk 0:00:08.2]} 74. Kh5+
{[%clk 0:00:19.4]} 74... Kf3 {[%clk 0:00:07.8]} 75. Kh6 {[%clk 0:00:20.3]} 75...
d4 {[%clk 0:00:07.4]} 76. Rg8 {[%clk 0:00:20.6]} 76... Rxh7+ {[%clk 0:00:06.9]}
77. Kxh7 {[%clk 0:00:21.5]} 77... d3 {[%clk 0:00:07]} 78. Rb8 {[%clk 0:00:21.5]}
78... d2 {[%clk 0:00:06.6]} 79. Rd8 {[%clk 0:00:20.9]} 79... Ke2 {[%clk
0:00:06.8]} 80. Re8+ {[%clk 0:00:21.5]} 80... Kd3 {[%clk 0:00:06.7]} 81. Rd8+
{[%clk 0:00:21.7]} 81... Kc2 {[%clk 0:00:06.9]} 82. Rb8 {[%clk 0:00:20.6]} 82...
d1=Q {[%clk 0:00:06.6]} 83. Rxb7 {[%clk 0:00:21.5]} 83... Qd3+ {[%clk
0:00:05.9]} 84. Kg7 {[%clk 0:00:21]} 84... Qg3+ {[%clk 0:00:05.3]} 85. Kh8
{[%clk 0:00:20.6]} 85... Qh2+ {[%clk 0:00:05.1]} 86. Rh7 {[%clk 0:00:20.4]}
86... Qb8+ {[%clk 0:00:04.1]} 87. Kg7 {[%clk 0:00:20.3]} 87... Qc7+ {[%clk
0:00:04.2]} 88. Kg6 {[%clk 0:00:20.9]} 88... Qxh7+ {[%clk 0:00:04.3]} 89. Kxh7
{[%clk 0:00:21.1]} 89... c4 {[%clk 0:00:05]} 90. Kg6 {[%clk 0:00:22]} 90... c3
{[%clk 0:00:05.4]} 91. Kf5 {[%clk 0:00:22.9]} 91... Kd2 {[%clk 0:00:05.9]} 92.
Ke4 {[%clk 0:00:23.8]} 92... c2 {[%clk 0:00:06.5]} 93. Kd4 {[%clk 0:00:24.7]}
93... c1=Q {[%clk 0:00:06.7]} 94. Ke4 {[%clk 0:00:25.6]} 94... Qc4+ {[%clk
0:00:06.5]} 95. Ke5 {[%clk 0:00:26.5]} 95... Ke3 {[%clk 0:00:06.6]} 96. Kf5
{[%clk 0:00:27.4]} 96... Qd5+ {[%clk 0:00:06.3]} 97. Kg4 {[%clk 0:00:27.2]}
97... Qe5 {[%clk 0:00:05.8]} 98. Kh4 {[%clk 0:00:26.8]} 98... Qg7 {[%clk
0:00:05.8]} 99. Kh5 {[%clk 0:00:27.2]} 99... Kf4 {[%clk 0:00:05.9]} 100. Kh4
{[%clk 0:00:27.9]} 100... Qh7# {[%clk 0:00:06.2]} 0-1

[Event "*** SCC Grand Prix: Titled Tuesday Blitz"]
[Site "Chess.com"]
[Date "2020.06.02"]
[Round "8"]
[White "Virgo15"]
[Black "GjakanTati"]
[Result "1-0"]
[WhiteElo "2760"]
[BlackElo "2620"]
[TimeControl "180+1"]
[EndTime "11:38:56 PDT"]
[Termination "Virgo15 won by checkmate"]

1. d4 {[%clk 0:02:59.1]} 1... f6 {[%clk 0:02:58.5]} 2. e4 {[%clk 0:02:58.5]}
2... g6 {[%clk 0:02:55.1]} 3. h4 {[%clk 0:02:58]} 3... h5 {[%clk 0:02:51.4]} 4.
Bd3 {[%clk 0:02:56.6]} 4... Nh6 {[%clk 0:02:44.8]} 5. e5 {[%clk 0:02:55.6]} 5...
f5 {[%clk 0:02:42.9]} 6. Nh3 {[%clk 0:02:55.6]} 6... e6 {[%clk 0:02:38.9]} 7.
Nf4 {[%clk 0:02:55.7]} 7... Rg8 {[%clk 0:02:32.8]} 8. Nxh5 {[%clk 0:02:48.7]}
8... gxh5 {[%clk 0:02:25.2]} 9. Bxh6 {[%clk 0:02:48.3]} 9... Qe7 {[%clk
0:02:03.1]} 10. Qxh5+ {[%clk 0:02:45.1]} 10... Qf7 {[%clk 0:01:57.6]} 11. Qxf7+
{[%clk 0:02:45.1]} 11... Kxf7 {[%clk 0:01:58.5]} 12. Bxf8 {[%clk 0:02:45.5]}
12... Kxf8 {[%clk 0:01:58.8]} 13. Kf1 {[%clk 0:02:33.4]} 13... Nc6 {[%clk
0:01:58.1]} 14. c3 {[%clk 0:02:33.4]} 14... b6 {[%clk 0:01:57]} 15. Nd2 {[%clk
0:02:32.5]} 15... Bb7 {[%clk 0:01:57.1]} 16. Nf3 {[%clk 0:02:33]} 16... Ne7
{[%clk 0:01:48.2]} 17. h5 {[%clk 0:02:26]} 17... Nd5 {[%clk 0:01:42.1]} 18. Rh4
{[%clk 0:02:22.3]} 18... Kf7 {[%clk 0:01:36.2]} 19. h6 {[%clk 0:02:18.2]} 19...
Rg6 {[%clk 0:01:33.3]} 20. c4 {[%clk 0:02:07.1]} 20... Nb4 {[%clk 0:01:26.4]}
21. Be2 {[%clk 0:02:00.5]} 21... Rh8 {[%clk 0:01:25.7]} 22. a3 {[%clk
0:01:54.7]} 22... Rgxh6 {[%clk 0:01:17.3]} 23. axb4 {[%clk 0:01:00]} 23... Bxf3
{[%clk 0:01:05]} 24. Bxf3 {[%clk 0:00:45.9]} 24... Rxh4 {[%clk 0:01:02.4]} 25.
Rxa7 {[%clk 0:00:46]} 25... Rxd4 {[%clk 0:01:00.7]} 26. Rxc7 {[%clk 0:00:46.1]}
26... Rd2 {[%clk 0:00:55.1]} 27. g3 {[%clk 0:00:44]} 27... Rh2 {[%clk
0:00:52.7]} 28. Bg2 {[%clk 0:00:41.5]} 28... Ke7 {[%clk 0:00:48.1]} 29. Kg1
{[%clk 0:00:40.7]} 29... Rh7 {[%clk 0:00:45]} 30. c5 {[%clk 0:00:34.5]} 30...
bxc5 {[%clk 0:00:43.6]} 31. bxc5 {[%clk 0:00:34.6]} 31... Rxb2 {[%clk
0:00:41.6]} 32. c6 {[%clk 0:00:31.9]} 32... Rb1+ {[%clk 0:00:34.7]} 33. Bf1
{[%clk 0:00:31.8]} 33... Rd1 {[%clk 0:00:35]} 34. Kg2 {[%clk 0:00:28.7]} 34...
Rh8 {[%clk 0:00:32]} 35. Bb5 {[%clk 0:00:27.1]} 35... Rb8 {[%clk 0:00:30.5]} 36.
Rb7 {[%clk 0:00:25.1]} 36... Ra8 {[%clk 0:00:23.2]} 37. cxd7 {[%clk 0:00:22.1]}
37... Kd8 {[%clk 0:00:21.6]} 38. Rb6 {[%clk 0:00:20.4]} 38... Rb1 {[%clk
0:00:18.4]} 39. Rxe6 {[%clk 0:00:18.9]} 39... Rxb5 {[%clk 0:00:14.8]} 40. Re8+
{[%clk 0:00:19.2]} 40... Kxd7 {[%clk 0:00:15.4]} 41. Rxa8 {[%clk 0:00:19.7]}
41... Rxe5 {[%clk 0:00:15.8]} 42. Kf3 {[%clk 0:00:20.1]} 42... Rb5 {[%clk
0:00:14.7]} 43. Kf4 {[%clk 0:00:18.6]} 43... Ke6 {[%clk 0:00:15]} 44. Ra6+
{[%clk 0:00:18.8]} 44... Kf7 {[%clk 0:00:14.6]} 45. Rd6 {[%clk 0:00:18.7]} 45...
Ke7 {[%clk 0:00:13.7]} 46. Rh6 {[%clk 0:00:19.2]} 46... Kf7 {[%clk 0:00:13.7]}
47. f3 {[%clk 0:00:19.6]} 47... Ra5 {[%clk 0:00:13.2]} 48. Rc6 {[%clk
0:00:18.3]} 48... Ke7 {[%clk 0:00:12.4]} 49. Kg5 {[%clk 0:00:18.4]} 49... Ra3
{[%clk 0:00:11.2]} 50. Kf4 {[%clk 0:00:16.2]} 50... Ra5 {[%clk 0:00:11.3]} 51.
Rb6 {[%clk 0:00:16.4]} 51... Kf7 {[%clk 0:00:11.4]} 52. Rh6 {[%clk 0:00:15.2]}
52... Ke7 {[%clk 0:00:10.7]} 53. Kg5 {[%clk 0:00:14.1]} 53... Ra3 {[%clk
0:00:09.8]} 54. Kf4 {[%clk 0:00:14.4]} 54... Ra5 {[%clk 0:00:09.2]} 55. Rc6
{[%clk 0:00:14.3]} 55... Kf7 {[%clk 0:00:09]} 56. Kg5 {[%clk 0:00:14.9]} 56...
Kg7 {[%clk 0:00:04.7]} 57. Rc7+ {[%clk 0:00:14]} 57... Kf8 {[%clk 0:00:05.2]}
58. f4 {[%clk 0:00:14.6]} 58... Ra3 {[%clk 0:00:04.7]} 59. Kxf5 {[%clk
0:00:14.5]} 59... Rxg3 {[%clk 0:00:04.2]} 60. Kf6 {[%clk 0:00:15.1]} 60... Kg8
{[%clk 0:00:03.4]} 61. f5 {[%clk 0:00:14.1]} 61... Rf3 {[%clk 0:00:03.9]} 62.
Rc8+ {[%clk 0:00:13]} 62... Kh7 {[%clk 0:00:04.3]} 63. Rc4 {[%clk 0:00:13.7]}
63... Rf1 {[%clk 0:00:03.5]} 64. Rh4+ {[%clk 0:00:13.9]} 64... Kg8 {[%clk
0:00:03.7]} 65. Rg4+ {[%clk 0:00:14.1]} 65... Kf8 {[%clk 0:00:04]} 66. Rh4
{[%clk 0:00:12.7]} 66... Kg8 {[%clk 0:00:04.4]} 67. Rg4+ {[%clk 0:00:13.2]}
67... Kf8 {[%clk 0:00:04.4]} 68. Kg6 {[%clk 0:00:13.7]} 68... Ke7 {[%clk
0:00:03.5]} 69. Re4+ {[%clk 0:00:13.2]} 69... Kf8 {[%clk 0:00:04]} 70. Rb4
{[%clk 0:00:13.3]} 70... Ke7 {[%clk 0:00:03.6]} 71. Rb7+ {[%clk 0:00:11.8]}
71... Kf8 {[%clk 0:00:04.1]} 72. Rb8+ {[%clk 0:00:11.5]} 72... Ke7 {[%clk
0:00:03.9]} 73. Rb7+ {[%clk 0:00:11.9]} 73... Kf8 {[%clk 0:00:03.7]} 74. Kf6
{[%clk 0:00:12.4]} 74... Kg8 {[%clk 0:00:03.9]} 75. Rg7+ {[%clk 0:00:12.9]}
75... Kf8 {[%clk 0:00:03.9]} 76. Rg3 {[%clk 0:00:12.6]} 76... Rf2 {[%clk
0:00:02.5]} 77. Rh3 {[%clk 0:00:12.4]} 77... Kg8 {[%clk 0:00:02]} 78. Rc3 {[%clk
0:00:12.7]} 78... Kh7 {[%clk 0:00:02.1]} 79. Ke6 {[%clk 0:00:12.4]} 79... Kg7
{[%clk 0:00:01.8]} 80. Rg3+ {[%clk 0:00:12.7]} 80... Kf8 {[%clk 0:00:02.2]} 81.
Kf6 {[%clk 0:00:12.9]} 81... Rf1 {[%clk 0:00:01.9]} 82. Rh3 {[%clk 0:00:13.1]}
82... Kg8 {[%clk 0:00:02.4]} 83. Rh2 {[%clk 0:00:13.3]} 83... Kf8 {[%clk
0:00:02.7]} 84. Rh8# {[%clk 0:00:13.4]} 1-0